{"text_format":"1","workbook":"xlsx","n_sheets":4,"sheets":["Cover","Parameters","BS","UE"],"not_rendered":{"charts":0,"images":0,"macros":1,"external_links":0,"defined_names":0,"comments":0,"pivot_tables":0},"unopened":[],"bounds":{"document_bytes":16777216,"sheet_cells":100000,"rows_first":2000,"rows_last":500,"rows_between":2000,"halvings":0,"cell_chars":16384,"cell_head_chars":4096},"cells_cut":0,"cells_raw":0,"read":"whole","date_system":"1900"}

{"sheet":"Cover","index":0,"n_rows":8,"n_cols":10,"rows_kept":8,"cut":false,"hidden":false,"merged":[]}
[]
[null,"3GPP TSG-RAN WG4 Meeting #95-e",null,null,null,null,null,null,null,"R4-200xxxx"]
[null,"Electronic meeting,  25 May - 5 June, 2020"]
[]
[null,"Source: Moderator (Ericsson)"]
[null,"Title: Summary of ideal and impairment results for ultra-low BLER"]
[null,"Agenda: 6.9.1"]
[null,"Document for: Information"]

{"sheet":"Parameters","index":1,"n_rows":12,"n_cols":5,"rows_kept":12,"cut":false,"hidden":false,"merged":[[1,2,1,4],[7,2,7,4],[6,2,6,4]]}
[]
[null,null,"Parameters for deriving performance requirements"]
[null,null,"Ideal Span Threshold",2,"dB"]
[null,null,"Impairment Span Threshold",4,"dB"]
[]
[]
[null,"Notes","1. Call function DerivingPerfReq()"]
[null,null,"2. If the ruls does not apply, or fails, -100dB or less will be returned"]
[null,null,null,-100,"Not enough input"]
[null,null,null,-101,"Input should be pairs"]
[null,null,null,-102,"Too large span for impairment"]
[null,null,null,-103,"After removal iteration, not enough input"]

{"sheet":"BS","index":2,"n_rows":6,"n_cols":29,"rows_kept":6,"cut":false,"hidden":false,"merged":[[0,0,1,0],[0,1,1,1],[0,3,1,3],[0,8,1,8],[0,9,0,10],[0,7,1,7],[0,2,1,2],[0,4,1,4],[0,5,1,5],[0,11,0,12],[0,6,1,6],[0,19,0,20],[0,21,0,22],[0,25,0,26],[0,27,0,28],[0,13,0,14],[0,15,0,16],[0,17,0,18],[0,23,0,24]]}
[" waveform","Tx/Rx","PUSCH mapping type","SCS and BW","MCS level","Propagation condition","DMRS","38.104 req","38.141 req","Nokia",null,"Huawei",null,"Intel",null,"Ericsson",null,null,null,null,null,null,null,null,null,"SPAN",null,"AVERAGE"]
[null,null,null,null,null,null,null,null,null,"Ideal","Impairment","Ideal","Impairment","Ideal","Impairment","Ideal","Impairment","Ideal","Impairment","Ideal","Impairment","Ideal","Impairment","Ideal","Impairment","Ideal","Impairment","Ideal","Impairment"]
["CP-OFDM","1T2R","type A","15kHz, 10MHz","MCS5","AWGN","DMRS 1+1",{"$f":"DerivingPerfReq(J3:Y3)","v":-100},{"$f":"IF(H3>-100,H3+0.6,H3)","v":-100},-7.27,null,null,null,-8.4,null,-8.1,null,null,null,null,null,null,null,null,null,{"$f":"MAX(J3,L3,N3,P3,R3,T3,V3,X3)-MIN(J3,L3,N3,P3,R3,T3,V3,X3)","v":1.1300000000000008},{"$f":"MAX(K3,M3,O3,Q3,S3,U3,W3,Y3)-MIN(K3,M3,O3,Q3,S3,U3,W3,Y3)","v":0},{"$f":"AVERAGE(J3,L3,N3,P3,R3,T3,V3,X3)","v":-7.9233333333333329},{"$error":"#DIV/0!"}]
["CP-OFDM","1T2R","type A","30kHz, 40MHz","MCS5","AWGN","DMRS 1+1",{"$f":"DerivingPerfReq(J4:Y4)","v":-100},{"$f":"IF(H4>-100,H4+0.6,H4)","v":-100},null,null,null,null,null,null,-8.5,null,null,null,null,null,null,null,null,null,{"$f":"MAX(J4,L4,N4,P4,R4,T4,V4,X4)-MIN(J4,L4,N4,P4,R4,T4,V4,X4)","v":0},0,-8.5,{"$error":"#DIV/0!"}]
["CP-OFDM","1T2R"," type B","15kHz, 10MHz","MCS5","AWGN","DMRS 1+1",{"$f":"DerivingPerfReq(J5:Y5)","v":-100},-100,-7.27,null,null,null,null,null,-8.1,null,null,null,null,null,null,null,null,null,0.83000000000000007,0,-7.6849999999999996,{"$error":"#DIV/0!"}]
["CP-OFDM","1T2R","type B","30kHz, 40MHz","MCS5","AWGN","DMRS 1+1",{"$f":"DerivingPerfReq(J6:Y6)","v":-100},-100,-7.65,null,-8.4,null,null,null,-8.5,null,null,null,null,null,null,null,null,null,0.84999999999999964,0,-8.1833333333333336,{"$error":"#DIV/0!"}]

{"sheet":"UE","index":3,"n_rows":6,"n_cols":29,"rows_kept":6,"cut":false,"hidden":false,"merged":[[0,27,0,28],[0,15,0,16],[0,17,0,18],[0,19,0,20],[0,21,0,22],[0,23,0,24],[0,25,0,26],[0,6,1,6],[0,7,1,7],[0,8,1,8],[0,9,0,10],[0,11,0,12],[0,13,0,14],[0,0,1,0],[0,1,1,1],[0,2,1,2],[0,3,1,3],[0,4,1,4],[0,5,1,5]]}
[" waveform","Tx/Rx","PDSCH mapping type","SCS and BW","MCS level","Propagation condition","DMRS","38.104 req","38.141 req","Ericsson",null,"Huawei",null,"Qualcomm",null,null,null,null,null,null,null,null,null,null,null,"SPAN",null,"AVERAGE"]
[null,null,null,null,null,null,null,null,null,"Ideal","Impairment","Ideal","Impairment","Ideal","Impairment","Ideal","Impairment","Ideal","Impairment","Ideal","Impairment","Ideal","Impairment","Ideal","Impairment","Ideal","Impairment","Ideal","Impairment"]
["CP-OFDM","1T2R","type A","15kHz, 10MHz","MCS14","AWGN","DMRS 1+1",{"$f":"DerivingPerfReq(J3:Y3)","v":-100},{"$f":"IF(H3>-100,H3+0.6,H3)","v":-100},null,null,null,null,null,null,null,null,null,null,null,null,null,null,null,null,{"$f":"MAX(J3,L3,N3,P3,R3,T3,V3,X3)-MIN(J3,L3,N3,P3,R3,T3,V3,X3)","v":0},{"$f":"MAX(K3,M3,O3,Q3,S3,U3,W3,Y3)-MIN(K3,M3,O3,Q3,S3,U3,W3,Y3)","v":0},{"$f":"AVERAGE(J3,L3,N3,P3,R3,T3,V3,X3)","v":{"$error":"#DIV/0!"}},{"$error":"#DIV/0!"}]
["CP-OFDM","1T2R","type A","30kHz, 40MHz","MCS14","AWGN","DMRS 1+1",{"$f":"DerivingPerfReq(J4:Y4)","v":-100},{"$f":"IF(H4>-100,H4+0.6,H4)","v":-100},null,null,null,null,null,null,null,null,null,null,null,null,null,null,null,null,{"$f":"MAX(J4,L4,N4,P4,R4,T4,V4,X4)-MIN(J4,L4,N4,P4,R4,T4,V4,X4)","v":0},0,{"$error":"#DIV/0!"},{"$error":"#DIV/0!"}]
["CP-OFDM","1T4R","type A","15kHz, 10MHz","MCS14","AWGN","DMRS 1+1",{"$f":"DerivingPerfReq(J5:Y5)","v":-100},-100,null,null,null,null,null,null,null,null,null,null,null,null,null,null,null,null,0,0,{"$error":"#DIV/0!"},{"$error":"#DIV/0!"}]
["CP-OFDM","1T4R","type A","30kHz, 40MHz","MCS14","AWGN","DMRS 1+1",{"$f":"DerivingPerfReq(J6:Y6)","v":-100},-100,null,null,null,null,null,null,null,null,null,null,null,null,null,null,null,null,0,0,{"$error":"#DIV/0!"},{"$error":"#DIV/0!"}]